Cogmind - Beta 15 @@@ ROGUE MODE // 2025.07.10 @ 21:25:11 Player: Raix Result: Destroyed by G-47 Trooper with Particle Gun Performance ------------- Evolutions (2) 1000 Regions Visited (3) 600 Robots Destroyed (34) 170 Value Destroyed (672) 672 Prototype IDs (1) 20 Alien Tech Used (0) 0 Bonus (0) 0 TOTAL SCORE: 2462 Bonus ------- None Cogmind --------- Core Integrity 0/550 Matter 287/300 Energy 100/100 System Corruption 1% Temperature Cool (9) Movement Core (350) Ox6 Location -8/Materials Parts ------- > --- POWER (2) -------- (None) > --- PROPULSION (3) --- (None) > --- UTILITY (3) ------ Large Storage Unit Advanced Targeting Computer > --- WEAPON (3) ------- (None) > --- INVENTORY (15) --- Armored Huge Wheel Advanced Weight Redist. System Improved Sensor Array Advanced Targeting Computer Particle Charger Advanced Beam Rifle Peak State ------------ > --- POWER ------------ Light Ion Engine Light Ion Engine > --- PROPULSION ------- Gravmag System Gravmag System Gravmag System > --- UTILITY ---------- Large Storage Unit Advanced Targeting Computer ECM Suite > --- WEAPON ----------- Heavy Particle Cannon Heavy Particle Cannon Heavy Particle Cannon > --- INVENTORY -------- Armored Huge Wheel Advanced Weight Redist. System Improved Sensor Array Advanced Targeting Computer Particle Charger Advanced Beam Rifle Heavy Particle Cannon Heavy Particle Cannon [Rating: 31] Favorites ----------- Power Ion Engine Engine Ion Engine Power Core Light Nuclear Core Propulsion Advanced Treads Treads Advanced Treads Leg Aluminum Leg Wheel Compact Wheel Hover Unit Gravmag System Flight Unit Improved VTOL Module Utility Large Storage Unit Device Improved Terrain Scanner Storage Large Storage Unit Processor Advanced Targeting Computer Weapon Heavy Particle Cannon Energy Gun EM Pulse Gun Energy Cannon Heavy Particle Cannon Ballistic Gun Light Assault Rifle Build | -11 -10 -9 -8 ------- Run | Yrd Mat Mat Mat Slots Evolved 4 | . . 2 2 Power 1 | . . . 1 Propulsion 1 | . . 1 . Utility 1 | . . 1 . Weapon 1 | . . . 1 Parts Attached 37 | 7 3 10 17 Power 6 | 1 . 2 3 Engine 5 | 1 . 2 2 Core 1 | . . . 1 Reactor . | . . . . Propulsion 14 | 2 . 4 8 Treads 3 | . . . 3 Leg 2 | 2 . . . Wheel 4 | . . 4 . Hover 4 | . . . 4 Flight 1 | . . . 1 Utility 7 | 2 1 2 2 Device 4 | 1 . 2 1 Storage 2 | 1 1 . . Processor 1 | . . . 1 Hackware . | . . . . Protection . | . . . . Artifact . | . . . . Weapon 10 | 2 2 2 4 Energy Gun 2 | 2 . . . Energy Cannon 6 | . . 2 4 Ballistic Gun 2 | . 2 . . Ballistic Cannon . | . . . . Launcher . | . . . . Special Weapon . | . . . . Impact Weapon . | . . . . Slashing Weapon . | . . . . Piercing Weapon . | . . . . Special Melee Weapon . | . . . . Unidentified Prototypes 1 | . . . 1 Parts Lost 20 | . 3 4 13 Power 5 | . . 1 4 Propulsion 4 | . 1 . 3 Utility 3 | . . 2 1 Weapon 8 | . 2 1 5 Highest Loss Streak 11 | . 2 3 11 To Critical Strikes . | . . . . Average Backups 8 | 5 8 6 11 Power . | 1 2 . . Propulsion 1 | 1 2 1 1 Utility 3 | . 2 2 5 Weapon 2 | 1 1 1 4 Tool/Special . | . . . . Unused Backups 13 | . . . 13 Power . | . . . . Propulsion 4 | . . . 4 Utility 6 | . . . 6 Weapon 3 | . . . 3 Tool/Special . | . . . . Average Slot Usage (%) 87 | . 93 90 81 Engine 10 | . 14 11 8 Treads 8 | . . . 16 Leg 8 | . 22 1 . Wheel 5 | . . 31 . Hover 3 | . . . 6 Device 11 | . 14 17 8 Storage 11 | . 14 11 9 Processor 4 | . . . 8 Energy Gun 4 | . 13 . . Energy Cannon 12 | . . 8 23 Ballistic Gun 6 | . 13 10 . Peak Build Rating 31 | 9 10 17 31 Average Rating 16 | 7 8 12 25 On Entrance 8 | . 9 8 15 Naked Turns . | . . . . Heaviest Build 45 | 15 30 39 45 Greatest Support 44 | 20 20 44 44 Greatest Overweight (x) 14 | . 2 2 14 Average Overweight (x) . | . 1 . 1 Largest Inventory Capacity 15 | 8 15 15 15 Average Capacity 14 | 7 14 15 15 Most Carried 15 | 7 10 11 15 Average Carried 9 | 5 8 6 11 Final Capacity 15 | 8 15 15 15 Final Carried 11 | 7 8 11 7 Class Distribution -------------------- 56% | Mutant 39% | Gunner 4% | Scavenger-Mutant Dominant Class ---------------- Mutant | -10/Materials Mutant | -9/Materials Gunner | -8/Materials Resources | -11 -10 -9 -8 ----------- Run | Yrd Mat Mat Mat Matter Collected 733 | 270 57 149 257 Remotely . | . . . . Salvage Created 985 | 179 144 179 483 Parts 74 | 16 20 12 26 Haulers Intercepted . | . . . . Recyclers Shooed . | . . . . Parts Field Recycled . | . . . . Retrieved Matter . | . . . . Parts Self-Destructed . | . . . . Prevented . | . . . . Kills | -11 -10 -9 -8 ------- Run | Yrd Mat Mat Mat Combat Hostiles Destroyed 26 | . 9 6 11 Guns 11 | . 8 3 . Cannons 14 | . . 3 11 AOE 1 | . 1 . . Classes Destroyed 9 | 3 2 1 3 Worker 3 | 2 . . 1 Builder 1 | . 1 . . Tunneler 3 | 3 . . . Recycler 1 | 1 . . . Swarmer 15 | . 9 3 3 Grunt 6 | . . 3 3 Brawler 1 | . . . 1 Duelist 1 | . . . 1 Sentry 3 | . . . 3 Best Kill Streak 6 | 2 4 3 6 Combat Bots Only 5 | . 3 3 5 Max Kills in Single Turn 2 | 1 1 2 2 Gunslinging . | . . . . Exploded 1 | . 1 . . Melee . | . . . . Uniques/NPCs Destroyed . | . . . . Combat | -11 -10 -9 -8 -------- Run | Yrd Mat Mat Mat Hostile Shots Fired 286 | . 85 39 162 Missed 66 | . 22 4 40 Hits 220 | . 63 35 122 Melee 1 | . . . 1 Projectile 219 | . 63 35 121 Critical Strikes 8 | . 1 1 6 Damage Taken 2738 | 31 543 434 1730 Core 732 | . 103 73 556 Absorbed by Shields . | . . . . Core Remaining (%) 79 | 100 58 81 . Volleys Fired 76 | 10 29 15 22 Largest 3 | 2 2 2 3 Hottest 225 | 80 80 150 225 Shots Fired 141 | 20 58 23 40 Gun 85 | 20 58 7 . Cannon 56 | . . 16 40 Launcher . | . . . . Special . | . . . . Kinetic 55 | . 48 7 . Thermal 56 | . . 16 40 Explosive . | . . . . Electromagnetic 30 | 20 10 . . Robot Hit Streak 14 | 8 10 6 14 Robot Miss Streak 5 | 2 5 4 3 Penetration Max . | . . . . Secondary Targets 2 | . 2 . . Max Gunslinging Chain 1 | . 1 . . Shots Hit Robots 80 | 13 32 9 26 Core Hits 46 | 6 14 8 18 Critical Kills . | . . . . Critical Parts Destroyed . | . . . . Critical Strikes . | . . . . Melee Attacks . | . . . . Impact . | . . . . Slashing . | . . . . Piercing . | . . . . Sneak Attacks . | . . . . Combat Hostiles . | . . . . Follow-up Attacks . | . . . . Damage Inflicted 1506 | 191 312 275 728 Guns 465 | 162 253 50 . Cannons 950 | . . 225 725 Explosions 88 | 29 59 . . Melee . | . . . . Ramming 3 | . . . 3 Kinetic 240 | . 190 50 . Thermal 1038 | 29 59 225 725 Explosive . | . . . . Electromagnetic 225 | 162 63 . . Impact . | . . . . Slashing . | . . . . Piercing . | . . . . Highest Corruption 1 | . . . 1 Average Corruption 1 | . . . 1 Corruption Purged . | . . . . Corruption Blocked . | . . . . Effects 4 | . . . 4 Message Errors 2 | . . . 2 Matter Fused 2 | . . . 2 Overload Shots . | . . . . Overflow Damage 10 | . . . 10 Projectiles 10 | . . . 10 Explosions . | . . . . Melee . | . . . . Knockbacks . | . . . . Impact . | . . . . Kinetic . | . . . . Secondary . | . . . . Self-Inflicted Damage 70 | 31 39 . . Shots 2 | 1 1 . . Rammed 3 | . . . 3 Targets Rammed 3 | . . . 3 Kicked . | . . . . Crushed . | . . . . Highest Temperature 682 | 54 84 682 557 Average Temperature 190 | 22 36 375 176 Received Heat Transfer 1107 | . . 225 882 Effects 27 | . . 18 9 Shutdowns 4 | . . 2 2 Energy Bleed 3 | . . 2 1 Interference 6 | . . 4 2 Matter Decay 3 | . . 2 1 Short Circuit 1 | . . . 1 Damage (minor) 6 | . . 4 2 Damage (major) 4 | . . 4 . Siege Activations . | . . . . Martial Activations . | . . . . Shielding Activations . | . . . . Robots Disrupted . | . . . . Combat Hostiles . | . . . . Robots Corrupted . | . . . . Combat Hostiles . | . . . . Parts Fried 2 | 1 1 . . Impact Corruptions . | . . . . Robots Melted . | . . . . Combat Hostiles . | . . . . Parts Melted 1 | . . . 1 Heat Transferred 1556 | . 150 333 1073 Parts Sabotaged . | . . . . Parts Stolen . | . . . . Parts Stripped . | . . . . Power Chain Reactions 2 | 1 1 . . Alert | -11 -10 -9 -8 ------- Run | Yrd Mat Mat Mat Maximum Alert Level . | . . . . Low Security (%) 100 | 100 100 100 100 Level 1 . | . . . . Level 2 . | . . . . Level 3 . | . . . . Level 4 . | . . . . Level 5 . | . . . . High Security . | . . . . Max Security . | . . . . Peak Influence 199 | 10 139 199 137 Initial 75 | . 6 27 75 Average 52 | 2 59 105 40 Influence Increases 857 | 30 234 279 314 Destroy 0b10 Robot/C 520 | . 180 120 220 Destroy 0b10 Robot/NC 40 | 30 5 . 5 Destroy Leader 100 | . 30 20 50 Disable Machine 15 | . . . 15 Destroy Structure 17 | . 4 4 9 Partial Spotted 15 | . . . 15 Lose Combat Pursuer 150 | . 15 135 . Influence Decreases 778 | 20 177 167 414 Entered New Map 148 | . 4 40 104 Time Decay 440 | 20 143 97 180 Lost Part 190 | . 30 30 130 Squads Dispatched 4 | . . . 4 Investigation 1 | . . . 1 Extermination . | . . . . Reinforcement . | . . . . Assault . | . . . . Garrison 3 | . . . 3 Intercept . | . . . . Searches Triggered . | . . . . Construction Impeded . | . . . . Haulers Reinforced . | . . . . Active Scanning Responses . | . . . . Cargo Convoy Interrupts . | . . . . Stealth | -11 -10 -9 -8 --------- Run | Yrd Mat Mat Mat Distress Signals 4 | . 1 . 3 Communications Jammed . | . . . . Distress Signals . | . . . . Times Spotted 53 | . 15 13 25 Peak Tracking Total 11 | . 5 7 11 Tactical Retreats 5 | . 1 3 1 Traps | -11 -10 -9 -8 ------- Run | Yrd Mat Mat Mat Traps Triggered 2 | . . . 2 Indirectly . | . . . . Trap Hack Attempts . | . . . . Triggered . | . . . . Disarmed . | . . . . Reprogrammed . | . . . . Reused . | . . . . Traps Extracted . | . . . . Installed . | . . . . Triggered . | . . . . Machines | -11 -10 -9 -8 ---------- Run | Yrd Mat Mat Mat Machines Disabled 1 | . . . 1 Max in Single Turn 1 | . . . 1 Machines Repaired . | . . . . Machines Dismantled . | . . . . Machines Sabotaged . | . . . . Overloaded Fab Kills . | . . . . Hacking | -11 -10 -9 -8 --------- Run | Yrd Mat Mat Mat Machines Accessed . | . . . . Terminals . | . . . . Fabricators . | . . . . Repair Stations . | . . . . Recycling Units . | . . . . Scanalyzers . | . . . . Garrison Access . | . . . . Total Hacks . | . . . . Successful . | . . . . Failed . | . . . . Catastrophic . | . . . . Database Lockouts . | . . . . Manual . | . . . . Terminals . | . . . . Fabricators . | . . . . Repair Stations . | . . . . Recycling Units . | . . . . Scanalyzers . | . . . . Garrison Access . | . . . . Terminal Hacks . | . . . . Fabricator Hacks . | . . . . Repair Station Hacks . | . . . . Recycling Unit Hacks . | . . . . Scanalyzer . | . . . . Garrison Access Hacks . | . . . . Unauthorized Hacks . | . . . . Terminals . | . . . . Fabricators . | . . . . Repair Stations . | . . . . Recycling Units . | . . . . Scanalyzers . | . . . . Garrison Access . | . . . . Data Cores Recovered . | . . . . Used . | . . . . Hacking Detections . | . . . . Full Trace Events . | . . . . Feedback Events . | . . . . Feedback Blocked . | . . . . Robot Schematics Acquired . | . . . . Robots Built . | . . . . Authchips . | . . . . Time . | . . . . Total Robot Build Rating . | . . . . Part Schematics Acquired . | . . . . Parts Built . | . . . . Authchips . | . . . . Time . | . . . . Total Part Build Rating . | . . . . Parts Repaired . | . . . . Time . | . . . . Parts Recycled . | . . . . Recycled Matter . | . . . . Retrieved Matter . | . . . . Retrieved Components . | . . . . Parts Scanalyzed . | . . . . Part Schematics Acquired . | . . . . Parts Damaged . | . . . . Bothacking | -11 -10 -9 -8 ------------ Run | Yrd Mat Mat Mat Used RIF Installer . | . . . . Robots Hacked . | . . . . Non-combat . | . . . . Combat . | . . . . Robot Hacks Applied . | . . . . Relay Couplers Released . | . . . . Fabnet Peak Effective % . | . . . . Robots Rewired . | . . . . Allies Hacked . | . . . . Hacks Repelled . | . . . . Allies | -11 -10 -9 -8 -------- Run | Yrd Mat Mat Mat Total Allies . | . . . . Largest Group . | . . . . Highest-Rated Group . | . . . . Highest-Rated Ally . | . . . . Total Orders . | . . . . Ally Attacks . | . . . . Total Damage . | . . . . Kills . | . . . . Allies Corrupted . | . . . . Allies Melted . | . . . . Intel | -11 -10 -9 -8 ------- Run | Yrd Mat Mat Mat Active Infowar (turns) 1259 | 86 460 189 524 Terrain 680 | 86 460 134 . Seismic 152 | . . 152 . ECM 557 | . . 33 524 Robot Analysis Total . | . . . . Derelict Logs Recovered . | . . . . Drone Launches . | . . . . Drone Recoveries . | . . . . Exploration | -11 -10 -9 -8 ------------- Run | Yrd Mat Mat Mat Turns Passed 1452 | 136 460 203 653 Spaces Moved 656 | 81 185 128 262 Core 26 | 17 . . 9 Treads 167 | . . . 167 Legs 249 | 64 185 . . Wheels 128 | . . 128 . Hover 86 | . . . 86 Flight . | . . . . Fastest Speed 50 | 50 120 96 52 Average Speed 166 | 105 200 101 193 Slowest Speed 750 | 120 260 130 750 Overloaded Moves . | . . . . Propulsion Burnouts . | . . . . Robots Hopped . | . . . . Potential Cave-ins . | . . . . Cave-ins Triggered . | . . . . Exploration Rate (%) 21 | 5 35 15 32 Regions Visited 3 Branch Regions . Pre-discovered Areas . | . . . . Known Exits Taken . | . . . . Unknown Exits Taken 3 | 1 1 1 . Scrap Searched . | . . . . Spaces Dug . | . . . . Terrain Destroyed 16 | . 3 4 9 Melee . | . . . . Projectile 13 | . . 4 9 AOE 3 | . 3 . . Terrain Rammed . | . . . . Walls Destroyed . | . . . . Machines Disabled . | . . . . Actions | -11 -10 -9 -8 --------- Run | Yrd Mat Mat Mat Total 887 | 111 225 179 372 Wait 37 | . 6 12 19 Move 653 | 80 184 127 262 Hop . | . . . . Pick Up 51 | 14 3 12 22 Fast Attach . | . . . . Attach 36 | 7 2 7 20 Detach 3 | . . . 3 Swap 6 | . 1 3 2 Drop 22 | . . 3 19 Fire 76 | 10 29 15 22 Melee . | . . . . Ram 3 | . . . 3 Kick . | . . . . Crush . | . . . . Escape Stasis . | . . . . Rewire . | . . . . Trap . | . . . . Miscellaneous . | . . . . Route ------- -11/Scrapyard -10/Materials -9/Materials -8/Materials History --------- Turn | Location | Event 12 | -11/Scrapyard | Discovered new exit (range 16) 137 | -11/Scrapyard | Entered Materials 308 | -10/Materials | Build established: Mutant 552 | -10/Materials | Discovered new exit (range 13) 597 | -10/Materials | Entered another Materials area 597 | -9/Materials | Evolved 2 slots: Propulsion x1, Utility x1 708 | -9/Materials | Discovered new exit (range 13) 788 | -9/Materials | Lost 3 parts (1p2u) 800 | -9/Materials | Entered another Materials area 800 | -8/Materials | Evolved 2 slots: Power x1, Weapon x1 1105 | -8/Materials | Build established: Gunner 1166 | -8/Materials | Garrison activated, responded to threat 1432 | -8/Materials | Core integrity fell below 50% 1446 | -8/Materials | Core integrity fell below 20% 1453 | -8/Materials | Destroyed by G-47 Trooper with Particle Gun Last Messages --------------- 01427_ K-01 Serf collects debris. 01427_ Slammed into K-01 Serf. 01429_ Hvy. Particle Cannon destroyed. 01430_ K-01 Serf collects debris. 01430_ R-06 Scavenger collects Lgt. Treads. 01433_ K-01 Serf collects debris. 01435_ R-06 Scavenger collects Broken Gravmag System. 01436_ K-01 Serf collects debris. 01436_ Acquired Lgt. Nuclear Core. 01436_ U-05 Engineer builds a Wall. 01438_ R-06 Scavenger collects ECM Suite. 01440_ K-01 Serf collects debris. 01441_ R-06 Scavenger collects Imp. Heat Sink. 01442_ Slammed into G-47 Trooper. 01443_ Lgt. Nuclear Core destroyed. 01443_ Critical hit (Burn: +37). 01443_ Adv. Heat Sink destroyed. 01444_ K-01 Serf collects debris. 01445_ Critical hit (Burn: +37). 01447_ Slammed into G-47 Trooper. Map ----- +----------------------------------------------------+ | ?????????????????????????????????????????????????? | | ?????????????????????????????????????????????????? | | ?????????????????????????????????????????????????? | | ?????????????????????????????????????????????????? | | ????????????????????????????????????????########?? | | ???????????????????????] ?????????????#]]]][[#?? | | ???????????????????????# ?????????????#]]]][[#?? | | ???????????????????????# ?????????????# [ #?? | | ???????????????????????# ?????????????## = ##### | | ???????????????????????+ ############### %## | | ???????????????????????# # #! ! + *## == | | ???????????????????????#u # ! """# " # ## == | | ???????????????????????#u # """# "G" / [ #" == | | ???????????????????????# %# """# " " # %=## | | ?????????????????? ????# # # ]# *##! | | | ?????????????????? # # ?######## %## | | ?????????????????? + ###+########## %###+ | | ???????????????????????# | | ???????????????????????#r " | | ???????????????????????# *%! | | ???????????????######### ############## #### | | ???????????????# =# k #????????????###+###??? | | ???????????????# #g #????????????? ???? | | ???????????????# =ggug ########????# """ """?? | | ???????????????# #=! #????# """ """ # | | ???????????????# #[@ #????# """ """ # | | ???????????????######### #????# """ """ # | | ???????????????????????# #????# """ """?? | | ???????????????????????# #????#???? ??? | | ???????????????????????# #????????? [??? | | ???????????????????????# #?????????###??? | | ???????????????????????# a #??????????????? | | ???????????????????????# #??????????????? | | ???????????????????????# #????########??? | | ??????????????????????? #????# #??? | | ??????????????????????? #????# """ #??? | | ??????????????????????? #????# """ #??? | | ??????????????????????? #????# """ #??? | | ??????????????????????? ??????# #??? | | ??????????????????????? ?????????# #??# | | ??????????????????????? ???????????####+###??# | | ????????????????????????????????????????# #??# | | ????????????????????????????????????????# #### | | ????????????????????????????????????????# " + | | ????????????????????????????????????????# #### | | ????????????????????????????????????????# #??# | | ????????????????????????????????????????### ###??# | | ??????????????????????????????????######### #????# | | ??????????????????????????????????# # #????# | | ??????????????????????????????????# # #????# | +----------------------------------------------------+ Best States ------------- Heat Dissipation 31 Energy Generation 15 Energy Capacity 250 Matter Stores 300 Matter Capacity 300 Sight Range 16 Terrain Scan Range 16 Terrain Scan Density 10 ECM Strength 1 Evasion (%) 55 Targeting Accuracy 8 Recoil Reduction 2 Item Schematics ----------------- None Robot Schematics ------------------ None Fabricated ------------ Nothing Repaired ---------- Nothing Alien Tech Used ----------------- None Achievements -------------- None Challenges ------------ None Game ------ Seed ScatterDeuteriumShovel Manual? 0 Play Time 00:20:46 Cumulative 19.6 hours Start 2025.07.10 @ 21:02:21 End 2025.07.10 @ 21:25:11 Sessions 1 Manual Loads 0 Difficulty Rogue Special Mode None Game No. 26 Rogue 26 Adventurer 0 Explorer 0 Win Type - Total 0 Types 0/0/0/0/0/0/0/0/0/0 Lore% 12 Gallery% 23 Achievement% 25 Wizard Run 0 Options --------- Layout 2 ASCII 0 Keyboard 0 Movement Numpad Keybinds 0 Fullscreen 1 Font 32/SmallcapsGlow Map View 77x44 Zoom Use 0% Tactical HUD 1 Map Filters NONE Filters NONE Steam 1 RUN: 862b6043-9d2c-4556-b1f3-173e366e9f61